bitfinex/quotes_SOLUSD_20240703
["timestamp","ask_amount","ask_price","bid_price","bid_amount"]
[1719972481515,6.566,152.3,152.25,0.34]
[1719972481717,43.06,152.33,152.25,0.17]
[1719972481898,19.8,152.26,152.19,6.145]
[1719972482108,43.06,152.26,152.19,6.145]
[1719972483029,6.5694,152.22,152.19,6.145]
[1719972483201,6.5694,152.22,152.15,6.5476]
[1719972483202,23.26,152.2,152.15,6.5476]
[1719972483798,19.8,152.19,152.12,15.2752]
[1719972484001,39.6832,152.23,152.12,15.2752]
[1719972484002,23.26,152.17,152.12,15.2752]
[1719972484321,6.5721,152.16,152.12,15.2752]
[1719972485329,29.8316,152.17,152.12,15.2752]
[1719972485829,29.8316,152.17,152.11,6.9141]
[1719972486126,29.8316,152.17,152.12,0.34]
[1719972486830,23.26,152.17,152.12,0.34]
[1719972488226,29.8316,152.17,152.12,0.34]
[1719972488521,23.26,152.17,152.12,6.5735]
[1719972488825,23.26,152.17,152.13,0.34]
[1719972489711,29.8316,152.17,152.13,0.34]
[1719972489904,23.26,152.17,152.12,6.9137]
[1719972490511,23.26,152.17,152.12,0.34]
[1719972490512,29.8316,152.17,152.12,0.34]
[1719972492012,23.26,152.17,152.13,6.5732]
[1719972492323,6.5707,152.19,152.14,0.34]
[1719972492710,19.8,152.19,152.13,0.17]
[1719972493022,26.3721,152.16,152.12,0.17]
[1719972493231,43.06,152.14,152.05,6.0552]
[1719972493433,6.574,152.12,152.06,6.5763]
[1719972493600,6.5742,152.11,152.05,12.6318]
[1719972493800,6.5742,152.11,152.04,16.2265]
[1719972493801,43.06,152.11,152.04,16.2265]
[1719972494021,6.5751,152.09,152.02,6.5776]
[1719972494223,6.5758,152.08,152.02,6.5776]
[1719972494725,43.06,152.11,152.01,6.0552]
[1719972495734,16.4314,152.15,152.04,6.577]
[1719972495735,19.8,152.14,152.04,6.577]
[1719972496041,6.5747,152.1,152.04,6.577]
[1719972496208,6.5747,152.1,152.05,0.34]
[1719972496731,6.575,152.09,152.04,0.34]
[1719972497526,6.5738,152.12,152.04,0.34]
[1719972497748,26.3738,152.12,152.06,6.576]
[1719972498623,6.5738,152.12,152.07,0.34]
[1719972499228,6.5733,152.13,152.07,6.9158]
[1719972499438,32.4158,152.18,152.07,0.34]
[1719972499730,19.8,152.15,152.08,6.5753]
[1719972499937,6.5732,152.14,152.09,0.34]
[1719972500115,6.5724,152.16,152.1,6.5745]
[1719972500319,6.5725,152.15,152.11,0.17]
[1719972500531,23.30355383,152.18,152.09,0.34]
[1719972500732,19.8,152.17,152.09,0.34]
[1719972500937,6.5725,152.15,152.09,0.34]
[1719972501151,6.87545383,152.18,152.1,6.3489]
[1719972501440,22.9573,152.24,152.11,0.34]
[1719972501610,6.5716,152.17,152.11,6.9141]
[1719972502019,19.8,152.2,152.12,6.5735]
[1719972502325,6.5711,152.19,152.13,0.34]
[1719972502516,6.5714,152.18,152.13,0.34]
[1719972502719,6.5714,152.18,152.13,0.17]
[1719972502919,6.5714,152.18,152.12,6.9136]
[1719972503124,26.3707,152.2,152.14,6.5728]
[1719972503339,6.8737063,152.21,152.15,0.17]
[1719972503638,6.8737063,152.21,152.1,6.3489]
[1719972503639,33.0937063,152.21,152.1,6.3489]
[1719972503818,6.5729,152.14,152.11,0.17]
[1719972504014,16.4274,152.19,152.11,0.17]
[1719972504015,6.5728,152.15,152.11,0.17]
[1719972504438,6.5729,152.14,152.1,6.3489]
[1719972504620,6.5728,152.15,152.1,6.3489]
[1719972505332,19.8,152.17,152.1,6.3489]
[1719972505333,6.5717,152.17,152.1,6.3489]
[1719972505527,6.5717,152.17,152.11,6.5741]
[1719972505738,6.572,152.16,152.1,6.3489]
[1719972505951,19.8,152.19,152.1,6.3489]
[1719972506120,16.4263,152.2,152.1,6.3489]
[1719972506121,6.5728,152.15,152.11,0.34]
[1719972506327,6.5729,152.14,152.11,0.34]
[1719972506645,6.5725,152.15,152.11,0.34]
[1719972506843,6.573,152.14,152.1,6.3489]
[1719972507051,6.5737,152.12,152.08,16.4859]
[1719972507346,19.8,152.17,152.08,23.0613]
[1719972508226,6.5733,152.13,152.09,0.17]
[1719972508433,6.5734,152.13,152.09,0.17]
[1719972508832,19.8,152.11,152.02,22.9449]
[1719972509036,6.3965,152.16,152.02,22.9449]
[1719972509238,20.0,152.15,152.02,22.9449]
[1719972509444,20.0,152.15,152.06,6.5763]
[1719972509445,6.5737,152.12,152.06,6.5763]
[1719972509753,6.575,152.09,152.03,6.5773]
[1719972509958,6.5755,152.08,152.02,29.5229]
[1719972510253,6.5755,152.08,152.02,22.9449]
[1719972510462,6.5755,152.08,152.02,29.5228]
[1719972511254,6.5749,152.1,152.04,6.5771]
[1719972511643,6.5751,152.09,152.02,22.9449]
[1719972511956,6.5747,152.1,152.03,0.34]
[1719972512140,6.5742,152.11,152.05,6.5766]
[1719972512331,6.5742,152.11,152.06,0.34]
[1719972513153,6.5746,152.1,152.06,0.34]
[1719972513450,6.5746,152.1,152.07,0.17]
[1719972513654,6.87734282,152.13,152.05,6.9167]
[1719972513655,6.5743,152.11,152.05,6.9167]
[1719972513840,6.87734282,152.13,152.05,0.34]
[1719972514048,36.2305,152.16,152.05,0.34]
[1719972514248,26.67568895,152.15,152.05,0.34]
[1719972514427,6.574,152.12,152.06,6.5762]
[1719972514632,6.5742,152.11,152.07,0.34]
[1719972514857,6.5742,152.11,152.08,0.34]
[1719972515153,6.5742,152.11,152.05,6.9166]
[1719972515337,6.5742,152.11,152.09,0.17]
[1719972515535,6.5742,152.11,152.05,6.9166]
[1719972515951,6.5746,152.1,152.05,0.34]
[1719972516267,6.5754,152.08,152.02,22.9449]
[1719972516762,6.5754,152.08,152.03,6.5775]
[1719972516961,6.5761,152.07,152.02,22.9449]
[1719972517129,6.5768,152.05,152.02,22.9449]
[1719972518750,6.5772,152.04,151.98,29.279]
[1719972519055,16.4382,152.09,151.92,260.1]
[1719972519056,23.32,152.0,151.95,15.5884]
[1719972519446,6.5779,152.03,151.97,6.5802]
[1719972519756,6.5781,152.02,151.96,6.5805]
[1719972521061,6.5776,152.03,151.97,6.5801]
[1719972521245,6.5776,152.03,151.98,0.34]
[1719972521641,26.25,152.07,151.98,0.34]
[1719972521962,6.5781,152.02,151.98,0.17]
[1719972522147,19.8,152.05,151.98,0.17]
[1719972522350,36.4418,152.06,151.97,0.34]
[1719972522351,19.8,152.03,151.97,0.34]
[1719972522554,19.8,152.03,151.96,0.34]
[1719972522761,36.2444,152.03,151.95,15.5884]
[1719972523943,6.5792,152.0,151.95,15.5884]
[1719972524248,6.5786,152.01,151.95,22.1694]
[1719972524438,36.2444,152.03,151.95,15.5884]
[1719972524639,6.5794,151.99,151.95,15.5884]
[1719972524846,6.5806,151.97,151.95,15.5884]
[1719972525056,6.5806,151.97,151.94,6.0541]
[1719972525845,69.37441829,152.03,151.94,6.0541]
[1719972525846,6.5807,151.96,151.94,6.0541]
[1719972526045,6.5811,151.95,151.91,15.8284]
[1719972526369,19.8,152.0,151.91,15.8284]
[1719972526933,6.5799,151.98,151.92,6.5823]
[1719972527750,6.5799,151.98,151.93,0.34]
[1719972528157,6.5802,151.97,151.93,0.34]
[1719972528472,6.5802,151.97,151.92,0.34]
[1719972528844,6.5802,151.97,151.92,6.9224]
[1719972529054,6.5798,151.98,151.92,6.9224]
[1719972529565,6.5802,151.97,151.92,6.9224]
[1719972529941,6.581,151.96,151.92,0.34]
[1719972530549,6.5802,151.98,151.92,6.9222]
[1719972530750,6.5802,151.97,151.92,6.9222]
[1719972531052,6.5802,151.97,151.92,0.34]
[1719972531470,6.5802,151.97,151.92,6.9223]
[1719972531773,6.5801,151.98,151.92,6.9223]
[1719972532267,6.5793,152.0,151.94,6.5814]
[1719972532445,6.5793,152.0,151.95,0.34]
[1719972532650,6.88001829,152.03,151.96,6.025]
[1719972532853,16.4402,152.07,151.97,0.34]
[1719972533059,6.5784,152.02,151.97,0.34]
[1719972533266,6.5777,152.03,151.97,6.9201]
[1719972534760,6.87920308,152.05,151.97,0.34]
[1719972534761,6.5781,152.02,151.97,0.34]
[1719972535084,6.5775,152.04,151.97,0.34]
[1719972535271,6.5775,152.04,151.98,6.5797]
[1719972535445,6.5775,152.04,151.99,0.34]
[1719972535943,6.578,152.02,151.99,0.34]
[1719972536349,6.5777,152.03,151.99,0.34]
[1719972536567,6.5777,152.03,151.98,0.34]
[1719972536766,26.67920308,152.05,151.98,0.34]
[1719972537050,6.5784,152.02,151.97,0.34]
[1719972539354,6.5777,152.03,151.97,6.9201]
[1719972539768,23.33,152.03,151.98,6.5797]
[1719972539954,29.9076,152.03,151.99,0.34]
[1719972540360,6.578,152.02,151.99,0.34]
[1719972541179,23.33,152.0,151.92,6.4171]
[1719972541448,23.33,151.97,151.92,6.4171]
[1719972541664,6.5806,151.96,151.92,6.4171]
[1719972541870,29.9103,151.97,151.92,6.4171]
[1719972542188,23.33,151.97,151.92,6.4171]
[1719972542475,6.5817,151.94,151.91,15.8284]
[1719972542974,29.9115,151.94,151.91,15.8284]
[1719972543154,23.33,151.94,151.91,15.8284]
[1719972544081,29.9115,151.94,151.88,12.9802]
[1719972544875,29.9115,151.94,151.89,0.17]
[1719972545056,23.33,151.94,151.89,6.7536]
[1719972545263,23.33,151.94,151.9,0.17]
[1719972545464,23.33,151.94,151.89,0.34]
[1719972545675,23.33,151.94,151.91,6.5827]
[1719972545876,23.33,151.94,151.92,0.34]
[1719972546075,6.88340457,151.96,151.93,22.2881]
[1719972546265,23.33,152.06,151.94,3.1455086]
[1719972546581,23.33,152.06,152.01,6.5784]
[1719972546759,23.33,152.06,152.02,6.9179]
[1719972546954,23.33,152.06,152.02,0.34]
[1719972547360,19.8,152.11,152.02,0.34]
[1719972547361,6.5759,152.08,152.02,0.34]
[1719972547562,23.33,152.07,152.02,6.9177]
[1719972547960,23.33,152.1,152.03,6.5776]
[1719972548158,23.33,152.07,152.02,0.34]
[1719972549859,19.8,152.09,152.02,0.34]
[1719972550059,6.5762,152.07,152.02,0.34]
[1719972550281,19.8,152.11,152.02,0.34]
[1719972550681,6.5767,152.06,152.02,0.34]
[1719972550887,6.5767,152.06,152.02,0.17]
[1719972551263,19.8,152.05,151.95,2.80532397]
[1719972551498,6.5777,152.03,151.97,6.58]
[1719972551684,6.5777,152.03,151.95,2.80532397]
[1719972551685,6.5773,152.04,151.95,2.80532397]
[1719972551868,42.6795,152.08,151.95,2.80532397]
[1719972552070,6.5771,152.05,151.99,6.579]
[1719972553069,6.5771,152.05,152.0,0.34]
[1719972553273,46.04,152.08,152.0,0.34]
[1719972553579,6.5766,152.06,152.0,6.9188]
[1719972553973,6.5767,152.05,152.0,6.9188]
[1719972554488,6.5767,152.05,152.0,0.34]
[1719972555065,46.04,152.08,152.0,0.34]
[1719972555265,6.5776,152.03,152.0,0.34]
[1719972555670,19.8,152.06,151.94,6.2784]
[1719972556581,6.5794,151.99,151.94,6.2784]
[1719972557069,6.5798,151.98,151.94,6.2784]
[1719972557387,6.5803,151.97,151.93,15.5839]
[1719972557962,6.5797,151.99,151.93,15.5839]
[1719972558167,6.5789,152.0,151.94,6.5812]
[1719972558470,19.8,152.02,151.94,6.5812]
[1719972558471,6.5794,151.99,151.94,6.5812]
[1719972558789,6.5794,151.99,151.93,15.5839]
[1719972559087,6.5798,151.98,151.93,15.5839]
[1719972559469,6.5793,152.0,151.93,22.1656]
[1719972559684,6.5795,151.99,151.93,22.1656]
[1719972560071,6.58,151.98,151.93,15.5839]
[1719972560265,6.58,151.98,151.94,0.17]
[1719972560884,6.5792,152.0,151.94,6.7513]
[1719972561274,6.5794,151.99,151.95,0.17]
[1719972561597,6.5794,151.99,151.94,0.34]
[1719972561999,6.5788,152.01,151.95,6.581]
[1719972562171,6.5788,152.01,151.96,0.34]
[1719972562373,6.5789,152.0,151.96,0.34]
[1719972562897,6.5789,152.0,151.97,0.17]
[1719972563075,6.5789,152.0,151.95,6.921]
[1719972563481,6.5789,152.0,151.95,0.34]
[1719972563698,6.5786,152.01,151.95,6.921]
[1719972564073,6.5786,152.01,151.96,6.5806]
[1719972564276,6.5781,152.02,151.97,0.34]
[1719972564600,6.5776,152.03,151.97,6.9202]
[1719972564769,6.5776,152.03,151.98,6.5797]
[1719972564975,6.5776,152.03,151.99,0.34]
[1719972565197,6.5776,152.03,152.0,0.17]
[1719972565372,6.5776,152.03,151.97,6.5151]
[1719972565573,6.5771,152.05,151.99,6.579]
[1719972565785,6.5772,152.04,152.0,0.34]
[1719972566081,6.5769,152.05,152.0,0.34]
[1719972566505,6.5772,152.04,152.0,0.34]
[1719972567394,6.5769,152.05,152.0,0.34]
[1719972568298,6.5764,152.06,152.0,6.9188]
[1719972568474,6.87938342,152.07,152.0,16.3059]
[1719972568679,6.5755,152.08,152.01,0.64891836]
[1719972568876,6.5755,152.08,152.02,7.56657567]
[1719972569077,6.5755,152.08,152.03,6.5776]
[1719972569280,6.5755,152.08,152.04,0.34]
[1719972569787,6.5755,152.08,152.03,0.34]
[1719972570182,6.5759,152.07,152.03,0.34]
[1719972570581,23.31,152.1,152.03,0.34]
[1719972570582,6.5755,152.08,152.03,0.34]
[1719972570798,6.5759,152.07,152.03,0.34]
[1719972570993,6.5764,152.06,152.03,0.34]
[1719972571189,6.576,152.07,152.04,0.17]
[1719972571390,6.576,152.07,152.02,0.34]
[1719972571992,43.11,152.1,152.02,0.34]
[1719972571993,6.5765,152.06,152.02,0.34]
[1719972572402,6.576,152.07,152.03,0.17]
[1719972572699,6.576,152.07,152.01,6.9184]
[1719972573910,6.576,152.07,152.02,6.578]
[1719972574086,6.576,152.07,152.03,0.34]
[1719972574287,26.67735898,152.13,152.03,0.34]
[1719972574503,23.31,152.11,152.04,6.0566]
[1719972574679,6.5755,152.08,152.05,0.34]
[1719972575095,6.5761,152.07,152.05,0.17]
[1719972575294,6.5761,152.07,152.04,6.0566]
[1719972575513,23.31,152.08,152.03,0.17]
[1719972575694,6.5768,152.05,152.0,15.9659]
[1719972575891,6.5768,152.05,152.01,0.17]
[1719972576617,6.5773,152.04,152.01,0.17]
[1719972576916,6.5773,152.04,152.0,15.9659]
[1719972577410,29.8869,152.05,152.0,15.9659]
[1719972577618,23.31,152.05,152.0,22.5447]
[1719972577919,6.576,152.07,152.01,6.5784]
[1719972578204,6.576,152.07,152.02,6.578]
[1719972578413,29.8855,152.08,152.02,6.578]
[1719972578584,29.8855,152.08,152.01,6.7483]
[1719972578585,6.5759,152.07,152.01,6.7483]
[1719972578781,6.5764,152.06,152.02,0.17]
[1719972579107,6.5764,152.06,152.01,6.918]
[1719972579319,6.576,152.07,152.01,0.34]
[1719972579613,23.31,152.08,152.03,6.5776]
[1719972579796,29.8855,152.08,152.04,0.34]
[1719972579992,6.5759,152.07,152.04,0.34]
[1719972580197,6.5763,152.06,152.04,0.17]
[1719972580400,6.5763,152.06,152.03,0.17]
[1719972581695,6.5763,152.06,152.02,0.34]
[1719972582506,6.576,152.07,152.02,0.34]
[1719972584606,6.5764,152.06,152.02,0.34]
[1719972585003,6.576,152.07,152.02,0.34]
[1719972585317,23.31,152.08,152.03,6.5776]
[1719972585613,23.31,152.08,152.04,0.17]
[1719972586006,29.8854,152.08,152.04,0.17]
[1719972586613,29.8854,152.08,152.03,0.17]
[1719972586817,6.5763,152.07,152.03,0.17]
[1719972587209,6.5754,152.08,152.02,6.9177]
[1719972587515,6.576,152.07,152.02,0.34]
[1719972587719,43.11,152.09,152.02,0.34]
[1719972587924,43.11,152.09,152.01,0.34]
[1719972588395,23.31,152.06,152.0,15.9659]
[1719972588600,23.31,152.06,152.0,22.5447]
[1719972588601,29.8864,152.06,152.0,22.5447]
[1719972589208,23.31,152.06,152.01,6.5784]
[1719972589395,29.8863,152.06,152.01,6.5784]
[1719972589596,29.8863,152.06,152.0,22.5447]
[1719972589796,6.5772,152.04,152.0,15.9659]
[1719972590233,43.11,152.06,152.0,22.5447]
[1719972590234,29.8866,152.06,152.0,22.5447]
[1719972591021,29.8866,152.06,152.01,0.34]
[1719972591203,6.5768,152.05,152.01,0.34]
[1719972591403,6.5768,152.05,152.01,0.17]
[1719972591604,6.5768,152.05,152.01,0.34]
[1719972591811,29.8864,152.06,152.01,0.34]
[1719972592004,6.5768,152.05,152.01,0.34]
[1719972592205,23.31,152.06,152.01,0.34]
[1719972592402,23.31,152.06,152.01,6.9184]
[1719972592725,29.49398303,152.09,152.01,0.34]
[1719972592926,6.5769,152.05,152.01,0.34]
[1719972593109,29.8869,152.05,152.01,0.34]
[1719972593316,6.5776,152.04,152.01,0.17]
[1719972593518,23.31,152.05,151.99,6.0629]
[1719972593817,19.8,152.04,151.96,15.7186]
[1719972594025,29.8883,152.02,151.96,15.7186]
[1719972594721,6.5777,152.03,151.97,6.5799]
[1719972594926,6.5785,152.01,151.96,15.7186]
[1719972595220,6.5791,152.0,151.96,15.7186]
[1719972595422,23.31,151.99,151.92,15.095]
[1719972595918,43.11,151.99,151.92,15.095]
[1719972596136,6.5808,151.96,151.92,15.095]
[1719972596340,6.5811,151.95,151.91,6.3399]
[1719972596509,23.31,151.96,151.91,6.3399]
[1719972596829,23.31,151.96,151.91,12.9226]
[1719972597227,6.5799,151.98,151.91,6.3399]
[1719972597606,6.5799,151.98,151.92,6.5823]
[1719972598423,6.5799,151.98,151.93,0.17]
[1719972598797,29.8893,151.99,151.93,6.9219]
[1719972599531,29.8893,151.99,151.94,6.5815]
[1719972599734,23.31,151.99,151.95,0.17]
[1719972600028,23.31,151.99,151.95,0.34]
[1719972600231,23.31,151.99,151.95,6.921]
[1719972600909,23.31,151.99,151.95,0.34]
[1719972601626,23.31,152.02,151.95,16.1594]
[1719972602406,6.5787,152.01,151.95,22.7401]
[1719972605411,6.579,152.0,151.95,22.7401]
[1719972605910,6.5795,151.99,151.95,15.8194]
[1719972606123,6.579,152.0,151.95,15.8194]
[1719972606429,6.579,152.0,151.95,22.4004]
[1719972606607,6.5797,151.99,151.95,15.8194]
[1719972606924,6.5789,152.0,151.95,15.8194]
[1719972607311,6.5789,152.0,151.96,0.34]
[1719972607626,29.8882,152.02,151.96,6.9202]
[1719972607827,23.31,152.02,151.97,6.5801]
[1719972608125,23.31,152.02,151.96,0.34]
[1719972608126,23.31,152.02,151.98,0.34]
[1719972608332,23.31,152.02,151.99,0.34]
[1719972608518,23.31,152.02,151.98,6.5797]
[1719972608719,23.31,152.02,151.99,0.34]
[1719972609723,23.31,152.02,151.99,6.9193]
[1719972609931,29.8871,152.05,151.99,6.9193]
[1719972610737,23.31,152.05,151.99,0.34]
[1719972610913,23.31,152.05,151.98,0.34]
[1719972611117,6.87986912,152.07,152.03,6.5775]
[1719972611418,6.5755,152.08,152.02,6.9179]
[1719972611615,6.5766,152.06,152.02,0.34]
[1719972612137,6.5769,152.05,152.02,0.34]
[1719972612433,23.31,152.06,152.02,0.17]
[1719972612638,23.31,152.06,152.02,0.34]
[1719972613013,23.31,152.06,152.02,6.918]
[1719972613235,23.31,152.06,152.02,0.34]
[1719972613435,23.31,152.06,152.02,6.918]
[1719972615441,29.8863,152.06,152.02,0.34]
[1719972615828,23.31,152.06,152.02,0.34]
[1719972616232,6.5771,152.05,152.02,0.34]
[1719972616441,23.31,152.06,152.02,0.34]
[1719972617251,29.8864,152.06,152.02,0.34]
[1719972617426,29.8864,152.06,152.01,0.34]
[1719972617635,29.8864,152.06,151.97,6.1302]
[1719972617636,6.5777,152.03,151.97,6.1302]
[1719972618139,6.5785,152.01,151.97,6.1302]
[1719972618640,6.5782,152.02,151.97,6.1302]
[1719972620248,6.5782,152.02,151.98,0.17]
[1719972620444,29.8877,152.03,151.98,0.17]
[1719972620825,6.18398303,152.07,151.98,0.34]
[1719972621023,23.31,152.05,151.98,0.34]
[1719972621250,23.31,152.05,152.0,6.5789]
[1719972621429,23.31,152.05,152.01,6.9184]
[1719972621624,23.31,152.05,152.01,6.5784]
[1719972622236,23.31,152.05,152.02,0.34]
[1719972622725,23.31,152.08,152.02,0.34]
[1719972622935,6.8783903,152.1,152.02,0.34]
[1719972622936,49.9883903,152.1,152.02,0.34]
[1719972623145,23.31,152.07,152.02,0.34]
[1719972623348,6.5763,152.06,152.02,0.34]
[1719972623532,23.31,152.07,152.01,0.34]
[1719972624053,23.31,152.07,152.02,6.5777]
[1719972624236,23.31,152.07,152.03,0.34]
[1719972625054,23.31,152.07,152.03,6.9175]
[1719972625548,29.886,152.07,152.03,0.34]
[1719972625948,29.886,152.07,152.02,0.34]
[1719972626126,23.31,152.07,152.03,6.5775]
[1719972626326,23.31,152.07,152.04,0.34]
[1719972626862,23.31,152.07,152.03,6.9174]
[1719972627532,6.5764,152.06,152.03,0.34]
[1719972629048,43.11,152.07,151.98,15.0278]
[1719972629240,23.31,152.04,151.98,15.0278]
[1719972629434,43.11,152.04,151.94,15.0278]
[1719972629832,6.5785,152.01,151.95,6.5808]
[1719972630028,6.5785,152.01,151.96,6.5806]
[1719972630354,6.579,152.0,151.94,15.0278]
[1719972630542,43.11,152.04,151.94,15.0278]
[1719972630543,6.5794,151.99,151.94,15.0278]
[1719972630749,6.5794,151.99,151.94,21.6092]
[1719972631756,6.579,152.0,151.95,0.17]
[1719972631958,6.579,152.0,151.94,21.6092]
[1719972632155,23.31,151.98,151.91,6.5824]
[1719972632542,6.5806,151.97,151.91,6.5824]
[1719972633261,29.8898,151.98,151.92,6.5823]
[1719972633642,29.8898,151.98,151.9,15.0278]
[1719972633643,43.11,151.98,151.9,15.0278]
[1719972633848,6.5811,151.95,151.9,15.0278]
[1719972634165,6.5807,151.96,151.9,21.611]
[1719972634372,26.3803,151.97,151.91,6.5827]
[1719972635162,49.6898,151.98,151.92,6.5821]
[1719972635339,6.5807,151.96,151.91,6.5828]
[1719972635740,19.8,151.97,151.91,6.5828]
[1719972636034,19.8,151.97,151.83,365.31495869]
[1719972636035,19.8,151.93,151.86,15.873]
[1719972636240,23.31,151.91,151.86,15.873]
[1719972636441,23.31,151.91,151.87,6.5845]
[1719972636862,23.31,151.91,151.86,15.873]
[1719972637058,23.31,151.91,151.87,6.5845]
[1719972638143,23.31,151.91,151.88,0.17]
[1719972638741,23.31,151.91,151.87,0.34]
[1719972638942,23.31,151.91,151.87,6.9245]
[1719972639265,23.31,151.91,151.87,0.34]
[1719972640055,6.582,151.93,151.87,6.9245]
[1719972640254,29.892,151.93,151.87,6.9245]
[1719972640442,23.31,151.93,151.87,0.34]
[1719972640763,23.31,151.93,151.87,6.9243]
[1719972641259,23.31,151.93,151.88,6.584]
[1719972641463,6.581,151.96,151.89,0.34]
[1719972641765,6.5812,151.95,151.9,0.17]
[1719972642068,6.5812,151.95,151.89,6.5836]
[1719972642364,6.5812,151.95,151.9,0.34]
[1719972642663,23.31,151.97,151.9,0.34]
[1719972643366,6.5805,151.97,151.91,6.5824]
[1719972643666,6.5805,151.97,151.92,0.34]
[1719972644470,6.5805,151.97,151.92,6.9223]
[1719972645262,29.8898,151.98,151.92,6.9223]
[1719972645461,6.87639879,152.0,151.93,15.6478]
[1719972645669,6.5789,152.01,151.95,6.5809]
[1719972645852,6.5789,152.01,151.96,0.17]
[1719972646351,6.5795,151.99,151.96,0.17]
[1719972646544,6.5795,151.99,151.95,0.17]
[1719972646864,6.5799,151.98,151.94,0.34]
[1719972647274,23.31,151.99,151.94,0.17]
[1719972647443,23.31,151.99,151.93,15.6478]
[1719972647639,43.11,151.99,151.92,6.1812]
[1719972647946,6.5819,151.94,151.89,16.2943]
[1719972648250,6.5819,151.93,151.89,16.2943]
[1719972648444,6.5819,151.93,151.88,6.5931]
[1719972648645,6.5816,151.94,151.88,6.5931]
[1719972648952,6.5814,151.95,151.89,6.5836]
[1719972649265,6.5814,151.95,151.85,15.038]
[1719972649266,6.5824,151.92,151.86,6.5849]
[1719972649843,6.5829,151.91,151.85,21.6234]
[1719972650070,23.31,151.9,151.85,6.5854]
[1719972650441,23.31,151.9,151.86,6.5849]
[1719972651772,23.31,151.9,151.85,0.17]
[1719972651973,23.31,151.9,151.85,6.7553]
[1719972652355,23.31,151.9,151.86,0.17]
[1719972652850,23.31,151.9,151.86,6.7549]
[1719972655070,29.8933,151.9,151.86,0.17]
[1719972655371,29.8933,151.9,151.85,0.17]
[1719972655372,23.31,151.9,151.85,6.9254]
[1719972655666,23.31,151.9,151.86,6.5849]
[1719972655870,23.31,151.9,151.87,0.17]
[1719972656057,23.31,151.93,151.87,0.17]
[1719972656255,29.8921,151.93,151.88,6.584]
[1719972656607,6.5824,151.92,151.87,0.17]
[1719972657776,23.31,151.93,151.9,6.5831]
[1719972657945,43.11,151.97,151.91,0.34]
[1719972658273,6.5813,151.95,151.91,0.34]
[1719972658667,6.5808,151.96,151.9,6.923]
[1719972659280,6.5818,151.94,151.9,0.17]
[1719972659464,6.5812,151.95,151.89,6.9234]
[1719972660871,23.31,151.94,151.89,0.17]
[1719972661066,43.11,151.94,151.89,0.17]
[1719972661279,6.5822,151.93,151.88,0.34]
[1719972661777,6.5822,151.93,151.84,6.3638]
[1719972661778,19.8,151.93,151.84,6.3638]